lending/lending_fUSD_20260306
["ID","MTS","AMOUNT","RATE_DAILY","PERIOD"]
[407861717,1772837971247,-644.79446246,0.00052499,120]
[407861718,1772837971318,-668.65185757,0.00052499,120]
[407861719,1772837971385,-693.3919763,0.00052499,120]
[407861720,1772837971453,-719.04747942,0.00052499,120]
[407861721,1772837971519,-745.65223616,0.00052499,120]
[407861722,1772837971585,-773.2413689,0.00052499,120]
[407861723,1772837971652,-801.85129955,0.00052499,120]
[407861724,1772837971716,-831.51979763,0.00052499,120]
[407861725,1772837971781,-862.28603014,0.00052499,120]
[407861726,1772837971846,-894.19061326,0.00052499,120]
[407861727,1772837971910,-927.27566595,0.00052499,120]
[407861728,1772837971974,-961.58486559,0.00052499,120]
[407861729,1772837972038,-997.16350561,0.00052499,120]
[407861730,1772837972102,-500.0,0.00052499,120]
[407861731,1772837972166,-500.0,0.00052499,120]
[407861732,1772837972232,-500.0,0.00052499,120]
[407861733,1772837972293,-500.0,0.00052499,120]
[407861734,1772837972359,-500.0,0.00052499,120]
[407861735,1772837972422,-151.0,0.00052499,120]
[407861736,1772837972483,-500.0,0.00052499,120]
[407861737,1772837972546,-151.0,0.00052499,120]
[407861738,1772837972609,-500.0,0.00052499,120]
[407861739,1772837972670,-151.0,0.00052499,120]
[407861740,1772837972730,-500.0,0.00052499,120]
[407861741,1772837972795,-151.0,0.00052499,120]
[407861742,1772837972852,-500.0,0.00052499,120]
[407861743,1772837972909,-151.0,0.00052499,120]
[407861744,1772837972965,-500.0,0.00052499,120]
[407861745,1772837973022,-151.0,0.00052499,120]
[407861746,1772837973079,-151.0,0.00052499,120]
[407861747,1772837973135,-500.0,0.00052499,120]
[407861748,1772837973197,-151.0,0.00052499,120]
[407861749,1772837973256,-500.0,0.00052499,120]
[407861750,1772837973317,-151.0,0.00052499,120]
[407861751,1772837973377,-500.0,0.00052499,120]
[407861752,1772837973437,-151.0,0.00052499,120]
[407861753,1772837973495,-500.0,0.00052499,120]
[407861754,1772837973556,-151.0,0.00052499,120]
[407861755,1772837973617,-500.0,0.00052499,120]
[407861756,1772837973677,-500.0,0.00052499,120]
[407861757,1772837973739,-151.0,0.00052499,120]
[407861758,1772837973799,-500.0,0.00052499,120]
[407861759,1772837973855,-423.69733874,0.00052499,120]
[407861760,1772837973912,-151.0,0.00052499,120]
[407861761,1772837973970,-500.0,0.00052499,120]
[407861762,1772837974027,-151.0,0.00052499,120]
[407861763,1772837974086,-500.0,0.00052499,120]
[407861764,1772837974144,-151.0,0.00052499,120]
[407861765,1772837974207,-500.0,0.00052499,120]
[407861766,1772837974267,-151.0,0.00052499,120]
[407861767,1772837974329,-500.0,0.00052499,120]
[407861768,1772837974440,-151.0,0.00052499,120]
[407861769,1772837974502,-500.0,0.00052499,120]
[407861770,1772837974562,-151.0,0.00052499,120]
[407861771,1772837974624,-500.0,0.00052499,120]
[407861772,1772837974686,-151.0,0.00052499,120]
[407861773,1772837974747,-500.0,0.00052499,120]
[407861774,1772837974807,-151.0,0.00052499,120]
[407861775,1772837974865,-500.0,0.00052499,120]
[407861776,1772837974926,-500.0,0.00052499,120]
[407861777,1772837974986,-500.0,0.00052499,120]
[407861778,1772837975047,-500.0,0.00052499,120]
[407861779,1772837975109,-500.0,0.00052499,120]
[407861780,1772837975173,-500.0,0.00052499,120]
[407861781,1772837975241,-500.0,0.00052499,120]
[407861782,1772837975305,-500.0,0.00052499,120]
[407861783,1772837975372,-500.0,0.00052499,120]
[407861784,1772837975438,-500.0,0.00052499,120]
[407861785,1772837975506,-600.0,0.000525,60]
[407861786,1772837975573,-500.0,0.000525,60]
[407861787,1772837975647,-739061.86558177,0.000525,110]
[407861788,1772837975717,-1000000.0,0.000525,110]
[407861789,1772837975781,-788980.01523385,0.000525,120]
[407861790,1772837975845,-165.378619,0.000525,120]
[407861791,1772837975915,-162.11,0.00052558,120]
[407861792,1772837975983,-216674.0,0.00052582,120]
[407861793,1772837976049,-500.0,0.00052596,60]
[407861794,1772837976119,-200000.0,0.000526,60]
[407861795,1772837976184,-9431.25058619,0.00052646,120]
[407861796,1772837976254,-162.11,0.00052658,120]
[407861797,1772837976320,-200000.0,0.000527,90]
[407861798,1772837976390,-15315.38255879,0.000527,120]
[407861799,1772837976455,-152.0,0.000527,30]
[407861800,1772837976520,-150.0,0.00052705,120]
[407861801,1772837976588,-150.0,0.00052717,120]
[407861802,1772837976660,-1000000.0,0.0005275,115]
[407861803,1772837976728,-1000000.0,0.0005275,110]
[407861804,1772837976797,-162.11,0.00052758,120]
[407861805,1772837976863,-150.0,0.00052771,120]
[407861806,1772837976928,-216674.0,0.00052782,120]
[407861807,1772837976988,-150.0,0.00052789,120]
[407861808,1772837977046,-300000.0,0.000528,120]
[407861809,1772837977106,-2481.17,0.000528,120]
[407861810,1772837977165,-3814.65,0.000528,120]
[407861811,1772837977226,-33859.07380025,0.000528,30]
[407861812,1772837977286,-10143.48143793,0.000528,30]
[407861813,1772837977345,-24809.8,0.000528,120]
[407861814,1772837977404,-50000.0,0.000528,120]
[407861815,1772837977463,-3626.17,0.000528,120]
[407861816,1772837977524,-5000.0,0.000528,120]
[407861817,1772837977586,-20302.8541406,0.000528,120]
[407861818,1772837977649,-162.11,0.00052858,120]
[407861819,1772837977708,-16722.24493558,0.00052875,60]
[407861820,1772837977768,-27495.84641983,0.00052877,120]
[407861821,1772837977829,-230.42471314,0.0005288,50]
[407861822,1772837977889,-247.63360212,0.000529,30]
[407861823,1772837977950,-340747.55329837,0.000529,30]
[407861824,1772837978011,-150.0,0.00052923,120]
[407861825,1772837978070,-150.0,0.00052943,120]
[407861826,1772837978128,-3502.0,0.00052954,120]
[407861827,1772837978187,-619.0,0.00052954,120]
[407861828,1772837978249,-162.11,0.00052958,120]
[407861829,1772837978312,-379.71,0.00052969,30]
[407861830,1772837978376,-603902.97504919,0.0005298,30]
[407861831,1772837978437,-1999780.0,0.0005298,30]
[407861832,1772837978500,-16087.36751403,0.0005298,30]
[407861833,1772837995143,10000.01,9.95e-05,2]
[407861834,1772837995169,10000.01,9.95e-05,2]
[407861835,1772837995192,10000.01,9.95e-05,2]
[407861836,1772837995215,10000.01,9.95e-05,2]
[407861837,1772837995238,10000.01,9.95e-05,2]
[407861838,1772837995263,10000.01,9.95e-05,2]
[407861839,1772837995285,10000.01,9.95e-05,2]
[407861840,1772837995307,746.89752288,9.95e-05,2]
[407861841,1772838002233,-3009.14060351,0.0004,60]
[407861842,1772838002306,-49194.5905242,0.0004,120]
[407861843,1772838002382,-28295.41966609,0.000423,120]
[407861844,1772838002452,-4126.28893859,0.000431,120]
[407861845,1772838002518,-507.3626941,0.000439,120]
[407861846,1772838002588,-1096.79723223,0.00043987,120]
[407861847,1772838002657,-423.50483209,0.00044,120]
[407861848,1772838002730,-6422.4481489,0.0004444,120]
[407861849,1772838002817,-500.0,0.00052499,120]
[407861850,1772838002887,-500.0,0.00052499,120]
[407861851,1772838002953,-518.5,0.00052499,120]
[407861852,1772838003015,-537.6845,0.00052499,120]
[407861853,1772838003082,-557.5788265,0.00052499,120]
[407861854,1772838003146,-578.20924308,0.00052499,120]
[407861855,1772838003215,-599.60298507,0.00052499,120]
[407861856,1772838003280,-621.78829552,0.00052499,120]
[407861857,1772838003349,-644.79446246,0.00052499,120]
[407861858,1772838003416,-668.65185757,0.00052499,120]
[407861859,1772838003484,-693.3919763,0.00052499,120]
[407861860,1772838003553,-719.04747942,0.00052499,120]
[407861861,1772838003625,-745.65223616,0.00052499,120]
[407861862,1772838003694,-773.2413689,0.00052499,120]
[407861863,1772838003765,-801.85129955,0.00052499,120]
[407861864,1772838003830,-831.51979763,0.00052499,120]
[407861865,1772838003896,-862.28603014,0.00052499,120]
[407861866,1772838003966,-894.19061326,0.00052499,120]
[407861867,1772838004030,-927.27566595,0.00052499,120]
[407861868,1772838004096,-961.58486559,0.00052499,120]
[407861869,1772838004165,-997.16350561,0.00052499,120]
[407861870,1772838004227,-8891990.43235158,0.0005298,30]
[407861871,1772838004257,4057.45413928,8e-05,2]
[407861872,1772838006446,5195.65833784,0.00011,2]
[407861873,1772838006469,4270.44223169,0.00011,2]
[407861876,1772838016889,190.67933657,0.0001,2]
[407861877,1772838084207,-642.69,0.00011308,2]
[407861878,1772838084238,-513.72842581,0.00011308,2]
[407861879,1772838084268,-2272.12705924,0.00011308,2]
[407861880,1772838084297,-243.0,0.00011308,2]
[407861881,1772838084326,-250.0,0.00011364,2]
[407861882,1772838084354,-478.42544591,0.0001142,2]
[407861883,1772838084383,-292.38441074,0.00011668,2]
[407861884,1772838084670,-642.69,0.00011672,2]
[407861885,1772838084700,-250.0,0.00011768,2]
[407861886,1772838084731,-1623.638989,0.00011977,2]
[407861887,1772838084760,-642.69,0.00012037,2]
[407861888,1772838084789,-694.0,0.00012375,2]
[407861889,1772838084817,-642.69,0.00012402,2]
[407861890,1772838084845,-150.0,0.0001243,2]
[407861891,1772838084875,-300.0,0.00012437,2]
[407861892,1772838084920,-250.0,0.00012438,2]
[407861893,1772838084948,-4500.01,0.00012438,2]
[407861894,1772838085015,-499.99,0.00012438,2]
[407861895,1772838085044,-500.0,0.00012438,2]
[407861896,1772838085072,-3000.03,0.00012438,2]
[407861897,1772838087092,-1999.97,0.00012438,2]
[407861898,1772838087122,-1243.0,0.00012455,2]
[407861899,1772838087152,-1200.0,0.00012478,2]
[407861900,1772838087852,-4360.19,0.00012479,2]
[407861901,1772838087882,-300.0,0.00012498,2]
[407861902,1772838087916,-182.0,0.00012529,2]
[407861903,1772838090216,-886.0,0.00012554,2]
[407861904,1772838090246,-150.0,0.00012599,2]
[407861905,1772838090278,-343.66916252,0.000126,3]
[407861906,1772838090310,-683.89620897,0.000126,3]
[407861907,1772838090342,-750.92593627,0.000126,3]
[407861908,1772838090374,-735.09803752,0.000126,3]
[407861909,1772838090407,-441.56072142,0.000126,3]
[407861910,1772838090444,-970.38573689,0.000126,3]
[407861911,1772838090688,-76.93839282,0.000126,3]
[407861912,1772838090720,-946.68572963,0.000126,3]
[407861913,1772838090753,-1029.01001842,0.000126,3]
[407861914,1772838090783,-2500.0,0.00012686,2]
[407861915,1772838090813,-230.4247132,0.000127,2]
[407861916,1772838090846,-75.53607518,0.000127,2]
[407861917,1772838090970,-282.8201415,0.000127,2]
[407861918,1772838090999,-500.0,0.0001272,2]
[407861919,1772838091028,-152.67,0.00012757,2]
[407861920,1772838091060,-152.67,0.00012757,2]
[407861921,1772838091092,-152.67,0.00012757,2]
[407861922,1772838091123,-152.68,0.00012757,2]
[407861923,1772838091153,-642.69,0.00012767,2]
[407861924,1772838091182,-500.0,0.00012773,2]
[407861925,1772838091215,-500.0,0.00012773,2]
[407861926,1772838091245,-500.0,0.00012773,2]
[407861927,1772838091279,-501.87803648,0.00012773,2]
[407861928,1772838091580,-500.0,0.00012773,2]
[407861929,1772838091611,-423.85364404,0.00012776,2]
[407861931,1772838110673,-76.14635596,0.00012776,2]
[407861932,1772838110708,-479.44415015,0.00012785,2]
[407861933,1772838110743,-500.0,0.00012785,2]
[407861934,1772838110777,-500.0,0.00012785,2]
[407861935,1772838110812,-401.40957285,0.00012785,2]
[407861936,1772838110848,-500.0,0.00012785,2]
[407861937,1772838110883,-500.0,0.00012785,2]
[407861938,1772838110918,-500.0,0.00012785,2]
[407861939,1772838110953,-500.0,0.00012785,2]
[407861940,1772838110988,-500.0,0.00012785,2]
[407861941,1772838111021,-500.0,0.00012785,2]
[407861942,1772838111370,-500.0,0.00012785,2]
[407861943,1772838111407,-500.0,0.00012785,2]
[407861944,1772838111438,-185.6109051,0.00012785,2]
[407861945,1772838116732,-271.50227644,0.00012685,2]
[407861946,1772838122873,-300.0,0.00012785,2]
[407861947,1772838126913,-9190.83813962,0.00012686,2]
[407861948,1772838128874,-10000.01,0.00012686,2]
[407861949,1772838136874,249.93283328,0.0001,2]
[407861950,1772838144872,500.0,8e-05,2]
[407861951,1772838145389,500.0,8e-05,2]
[407861952,1772838145859,722.1497579,8e-05,2]
[407861953,1772838146630,500.0,8e-05,2]
[407861954,1772838147143,500.0,8e-05,2]
[407861955,1772838147227,500.0,8e-05,2]
[407861956,1772838147667,543.03293188,8e-05,2]
[407861957,1772838147700,500.0,8e-05,2]
[407861958,1772838147730,500.0,8e-05,2]
[407861959,1772838148231,500.0,8e-05,2]
[407861960,1772838148612,562.58734767,8e-05,2]
[407861961,1772838148832,500.0,8e-05,2]
[407861962,1772838149747,500.0,8e-05,2]
[407861963,1772838151560,-500.0,0.0001142,2]
[407861964,1772838151591,-500.0,0.0001142,2]
[407861965,1772838151622,-500.0,0.0001142,2]
[407861966,1772838151652,-510.32990281,0.0001142,2]
[407861967,1772838151684,-500.0,0.0001142,2]
[407861968,1772838151715,-500.0,0.0001142,2]
[407861969,1772838151747,-576.36919382,0.0001142,2]
[407861970,1772838151778,-500.0,0.0001142,2]
[407861971,1772838151809,-373.07221866,0.0001142,2]
[407861972,1772838151840,-500.0,0.0001142,2]
[407861973,1772838152418,980.12020361,8e-05,2]
[407861974,1772838153146,500.0,8e-05,2]
[407861975,1772838157385,505.49393616,8e-05,2]
[407861978,1772838160039,-500.0,0.0001142,2]
[407861979,1772838160070,-500.0,0.0001142,2]
[407861980,1772838160102,-500.0,0.0001142,2]
[407861981,1772838160132,-500.0,0.0001142,2]
[407861982,1772838160163,-500.0,0.0001142,2]
[407861983,1772838160193,-500.0,0.0001142,2]
[407861984,1772838160224,-500.0,0.0001142,2]
[407861985,1772838160259,-500.0,0.0001142,2]
[407861986,1772838160288,-500.0,0.0001142,2]
[407861987,1772838160320,-500.0,0.0001142,2]
[407861988,1772838163132,-200.0,0.0001142,2]
[407861989,1772838163163,-500.0,0.0001142,2]
[407861990,1772838163190,-500.0,0.0001142,2]
[407861991,1772838163223,-500.0,0.0001142,2]
[407861992,1772838163251,-500.0,0.0001142,2]
[407861993,1772838163283,-500.0,0.0001142,2]
[407861994,1772838163315,-500.0,0.0001142,2]
[407861995,1772838163347,-222.72538794,0.000126,2]
[407861996,1772838163379,-352.89049442,0.000126,2]
[407861997,1772838167531,219.95076663,0.0001,2]
[407861998,1772838262200,-300.0,0.00012685,2]
[407861999,1772838262232,-300.0,0.00012685,2]
[407862000,1772838262265,-1200.0,0.00012685,2]
[407862001,1772838262295,-300.0,0.00012685,2]
[407862002,1772838262578,-130.62782089,0.00012686,2]
[407862003,1772838265006,-2224.21256051,0.00012686,2]
[407862004,1772838265033,-5551.58487898,0.00012686,2]
[407862005,1772838271127,-1175.988,0.00012686,2]
[407862006,1772838271158,-1706.4322,0.00012686,2]
[407862007,1772838271188,-1735.1696,0.00012686,2]
[407862008,1772838271255,-764.8304,0.00012686,2]
[407862009,1772838306930,-500.0,0.00012585,2]
[407862010,1772838306962,-179.98418935,0.00012593,2]
[407862011,1772838306993,-179.98418935,0.00012643,2]
[407862012,1772838307024,-300.0,0.00012685,2]
[407862013,1772838307058,-1200.0,0.00012685,2]
[407862014,1772838307088,-2275.29792451,0.00012686,2]
[407862015,1772838307226,-729.47739358,0.00012686,2]
[407862016,1772838309910,-2327.09259358,0.00012686,2]
[407862017,1772838309940,-5345.82481284,0.00012686,2]
[407862018,1772838315904,-746.77352382,0.00012693,2]
[407862019,1772838315937,-2223.56884641,0.00012693,2]
[407862020,1772838315977,-4059.32525954,0.00012693,2]
[407862021,1772838356116,-227.40702861,0.00012686,2]
[407862023,1772838428186,-2272.59297139,0.00012686,2]
[407862024,1772838428227,-5454.82405722,0.00012686,2]
[407862025,1772838434234,-1294.57584278,0.00012686,2]
[407862026,1772838434268,-939.08871363,0.00012693,2]
[407862027,1772838434306,-179.98418935,0.00012693,2]
[407862028,1772838434339,-300.0,0.00012772,2]
[407862029,1772838434374,-500.0,0.00012773,2]
[407862030,1772838434408,-500.0,0.00012773,2]
[407862031,1772838434439,-501.74200983,0.00012773,2]
[407862032,1772838434469,-500.0,0.00012773,2]
[407862033,1772838434500,-69.22848882,0.00012773,2]
[407862034,1772838434682,-430.77151118,0.00012773,2]
[407862035,1772838436320,500.0,8e-05,2]
[407862036,1772838436363,500.0,8e-05,2]
[407862037,1772838436801,830.66306085,8e-05,2]
[407862038,1772838440741,-822.26550568,0.0001142,2]
[407862039,1772838440771,-500.0,0.0001142,2]
[407862040,1772838440801,-500.0,0.0001142,2]
[407862041,1772838440829,-510.32990281,0.0001142,2]
[407862042,1772838440858,-500.0,0.0001142,2]
[407862043,1772838440888,-500.0,0.0001142,2]
[407862044,1772838440917,-501.15119853,0.0001142,2]
[407862045,1772838440947,-510.39170789,0.0001142,2]
[407862046,1772838440975,-500.0,0.00012773,2]
[407862047,1772838441147,-311.73337018,0.00012778,2]
[407862048,1772838442803,657.45136188,8e-05,2]
[407862049,1772838445513,556.72994091,8e-05,2]
[407862050,1772838448834,500.0,8e-05,2]
[407862051,1772838449313,543.25685673,8e-05,2]
[407862052,1772838547145,-1196.0,0.00011419,2]
[407862053,1772838547167,-300.0,0.00011419,2]
[407862054,1772838547200,-2906.87469465,0.0001142,2]
[407862055,1772838547222,-477.95606243,0.0001142,2]
[407862056,1772838547245,-500.0,0.0001142,2]
[407862057,1772838547266,-500.0,0.0001142,2]
[407862058,1772838547287,-500.0,0.0001142,2]
[407862059,1772838547309,-500.0,0.0001142,2]
[407862060,1772838547330,-500.0,0.0001142,2]
[407862061,1772838547355,-116.99604029,0.0001142,2]
[407862062,1772838560084,-383.00395971,0.0001142,2]
[407862063,1772838560104,-250.0,0.0001142,2]
[407862064,1772838564075,-352.187629,0.00012344,2]
[407862065,1772838564096,-420.0,0.00012543,2]
[407862066,1772838564119,-5000.0,0.00012561,2]
[407862067,1772838564144,-250.0,0.00012562,2]
[407862068,1772838564164,-437.876,0.00012585,2]
[407862069,1772838564185,-178.70756034,0.000126,3]
[407862070,1772838564204,-166.29300835,0.00012672,2]
[407862071,1772838564224,-279.92763357,0.00012672,2]
[407862072,1772838564249,-600.15661921,0.00012672,2]
[407862073,1772838564269,-150.0,0.00012672,2]
[407862074,1772838564291,-23655.78294307,0.00012673,2]
[407862075,1772838586178,-8400.02320236,0.00012673,2]
[407862076,1772838586404,-10000.01,0.00012673,2]
[407862077,1772838592753,-10000.01,0.00012673,2]
[407862078,1772838592879,-10000.01,0.00012673,2]
[407862079,1772838613594,176.1186775,0.000125,3]
[407862080,1772838613682,222.35236148,0.000125,3]
[407862081,1772838613737,233.63264572,0.000125,3]
[407862082,1772838613889,232.08460893,0.000125,3]
[407862086,1772838631655,-5159.38385076,0.00012586,2]
[407862088,1772838631666,-300.0,0.000126,4]
[407862090,1772838631675,-1200.0,0.00012672,2]
[407862091,1772838631684,-300.0,0.00012672,2]
[407862092,1772838631693,-254.0,0.00012672,2]
[407862093,1772838631703,-15996.54669511,0.00012673,2]
[407862094,1772838631715,-737.80572277,0.00012673,2]
[407862095,1772838631730,-125123.76787941,0.00012673,2]
[407862126,1772838637722,-511.18339668,0.00012673,2]
[407862127,1772838637783,-45802.157581,0.00012673,2]
[407862128,1772838637846,-330.47737862,0.00012673,2]
[407862134,1772838640233,-2249442.22520098,0.00012673,2]
[407862135,1772838640242,-2500.0,0.00012686,2]
[407862136,1772838640251,-600.0,0.000127,4]
[407862137,1772838640261,-188.26662982,0.00012778,2]
[407862138,1772838640272,-500.0,0.00012778,2]
[407862139,1772838640281,-500.0,0.00012778,2]
[407862140,1772838640290,-500.0,0.00012778,2]
[407862141,1772838640300,-500.0,0.00012778,2]
[407862142,1772838640309,-151.0,0.00012778,2]
[407862143,1772838640319,-243.62459014,0.00012778,2]
[407862144,1772838640329,-151.0,0.00012778,2]
[407862145,1772838640338,-151.0,0.00012778,2]
[407862146,1772838640348,-151.0,0.00012778,2]
[407862147,1772838640357,-151.0,0.00012778,2]
[407862148,1772838640367,-151.0,0.00012778,2]
[407862149,1772838640378,-151.0,0.00012778,2]
[407862150,1772838640390,-151.0,0.00012778,2]
[407862151,1772838640400,-151.0,0.00012778,2]
[407862153,1772838640410,-151.0,0.00012778,2]
[407862155,1772838640419,-151.0,0.00012778,2]
[407862156,1772838640429,-151.0,0.00012778,2]
[407862157,1772838640439,-151.0,0.00012778,2]
[407862158,1772838640448,-151.0,0.00012778,2]
[407862159,1772838640460,-151.0,0.00012778,2]
[407862160,1772838640469,-151.0,0.00012778,2]
[407862161,1772838640478,-151.0,0.00012778,2]
[407862162,1772838640488,-151.0,0.00012778,2]
[407862163,1772838640497,-151.0,0.00012778,2]
[407862164,1772838640507,-151.0,0.00012778,2]
[407862166,1772838640517,-151.0,0.00012778,2]
[407862168,1772838640527,-151.0,0.00012778,2]
[407862170,1772838640537,-151.0,0.00012778,2]
[407862171,1772838640546,-151.0,0.00012778,2]
[407862172,1772838640556,-151.0,0.00012778,2]
[407862173,1772838640566,-151.0,0.00012778,2]
[407862174,1772838640575,-151.0,0.00012778,2]
[407862175,1772838640585,-151.0,0.00012778,2]
[407862176,1772838640594,-151.0,0.00012778,2]
[407862177,1772838640604,-151.0,0.00012778,2]
[407862178,1772838640613,-151.0,0.00012778,2]
[407862179,1772838640622,-151.0,0.00012778,2]
[407862180,1772838640631,-4580.7241,0.000128,2]
[407862181,1772838640640,-1000.0,0.000128,4]
[407862182,1772838640650,-3397.81,0.0001281,2]
[407862183,1772838640659,-1448.5564,0.00012849,2]
[407862184,1772838640668,-1000.0,0.00012886,2]
[407862185,1772838640678,-9999.99,0.00012886,2]
[407862186,1772838640688,-299.99,0.00012886,2]
[407862187,1772838640698,-9999.99,0.00012886,2]
[407862188,1772838640711,-150.99,0.00012886,2]
[407862189,1772838640720,-150.99,0.00012886,2]
[407862190,1772838640729,-1300.0,0.000129,4]
[407862191,1772838640738,-1008.0,0.00012994,2]
[407862192,1772838640748,-353.00928897,0.00013,2]
[407862193,1772838640758,-642.69,0.00013132,2]
[407862194,1772838640768,-62304.09170524,0.00013141,2]
[407862195,1772838640778,-1852.42,0.00013195,2]
[407862196,1772838640787,-7916.26,0.00013229,2]
[407862197,1772838640797,-1500.0,0.00013232,2]
[407862198,1772838640806,-4000.0,0.00013266,2]
[407862199,1772838640815,-1600.0,0.00013283,2]
[407862200,1772838640825,-194.0,0.000133,2]
[407862201,1772838640834,-500.0,0.00013321,2]
[407862202,1772838640843,-1000.0,0.00013325,2]
[407862203,1772838640853,-508.0,0.0001342,2]
[407862204,1772838640862,-506.0,0.0001342,2]
[407862205,1772838640872,-506.0,0.0001342,2]
[407862206,1772838640881,-642.69,0.00013496,2]
[407862207,1772838640891,-4000.0,0.00013598,2]
[407862208,1772838640900,-5159.3838507,0.00013631,2]
[407862209,1772838640910,-659.5222959,0.00013693,2]
[407862210,1772838640919,-500.0,0.00013698,2]
[407862211,1772838640929,-500.0,0.00013698,2]
[407862212,1772838640938,-500.0,0.00013698,2]
[407862213,1772838640948,-500.0,0.00013698,2]
[407862214,1772838640957,-501.65490111,0.00013698,2]
[407862215,1772838640967,-500.0,0.00013698,2]
[407862216,1772838640976,-500.0,0.00013698,2]
[407862217,1772838640985,-500.0,0.00013698,2]
[407862218,1772838640995,-494.28601797,0.00013698,2]
[407862219,1772838641005,-500.0,0.00013698,2]
[407862220,1772838641015,-500.0,0.00013698,2]
[407862221,1772838641025,-193.3943989,0.00013698,2]
[407862222,1772838641034,-500.0,0.00013698,2]
[407862223,1772838641043,-500.0,0.00013698,2]
[407862224,1772838641063,-500.0,0.00013698,2]
[407862225,1772838641079,-500.0,0.00013698,2]
[407862226,1772838641089,-500.0,0.00013698,2]
[407862227,1772838641099,-500.0,0.00013698,2]
[407862228,1772838641108,-500.0,0.00013698,2]
[407862229,1772838641118,-500.0,0.00013698,2]
[407862230,1772838641127,-500.0,0.00013698,2]
[407862231,1772838641136,-500.0,0.00013698,2]
[407862232,1772838641146,-500.0,0.00013698,2]
[407862233,1772838641155,-500.0,0.00013698,2]
[407862234,1772838641164,-500.0,0.00013698,2]
[407862235,1772838641174,-500.0,0.00013698,2]
[407862236,1772838641184,-500.0,0.00013698,2]
[407862237,1772838641193,-500.0,0.00013698,2]
[407862238,1772838641203,-500.0,0.00013698,2]
[407862239,1772838641212,-500.0,0.00013698,2]
[407862240,1772838641222,-500.0,0.00013698,2]
[407862241,1772838641231,-500.0,0.00013698,2]
[407862242,1772838641242,-500.0,0.00013698,2]
[407862243,1772838641252,-500.0,0.00013698,2]
[407862244,1772838641261,-500.0,0.00013698,2]
[407862245,1772838641271,-500.0,0.00013698,2]
[407862246,1772838641281,-500.0,0.00013698,2]
[407862247,1772838641290,-500.0,0.00013698,2]
[407862248,1772838641300,-500.0,0.00013698,2]
[407862249,1772838641310,-500.0,0.00013698,2]
[407862250,1772838641319,-500.0,0.00013698,2]
[407862251,1772838641329,-500.0,0.00013698,2]
[407862252,1772838641339,-500.0,0.00013698,2]
[407862253,1772838641348,-500.0,0.00013698,2]
[407862254,1772838641358,-630.81055911,0.00013698,2]
[407862255,1772838641369,-500.0,0.00013698,2]
[407862256,1772838641570,-500.0,0.00013698,2]
[407862257,1772838641580,-500.0,0.00013698,2]
[407862258,1772838641590,-500.0,0.00013698,2]
[407862259,1772838641599,-500.0,0.00013698,2]
[407862260,1772838641609,-500.0,0.00013698,2]
[407862261,1772838641618,-500.0,0.00013698,2]
[407862262,1772838641627,-500.0,0.00013698,2]
[407862263,1772838641636,-379.68782672,0.00013698,2]
[407862264,1772838641646,-500.0,0.00013698,2]
[407862265,1772838641655,-500.0,0.00013698,2]
[407862266,1772838641664,-500.0,0.00013698,2]
[407862267,1772838641673,-500.0,0.00013698,2]